Workbook

Sheet SEMESTRE
B1: ORARIO LEZIONI
B2: SEMESTRE AUTUNNALE
C3: ORA INIZIO | D3: INTERVALLO DI TEMPO | F3: ANNO
C4: 09:00:00 | D4: 60 | E4: (in minuti)
B5: ORA | C5: LUN | D5: MAR | E5: MER | F5: GIO | G5: VEN | H5: SAB | I5: DOM
B6: =OraInizio+TIME(0,(ROW(A1)-1)*IntervalloTempo,0) -> 09:00:00 | C6: Colazione | D6: Colazione | E6: Colazione | F6: Colazione | G6: Colazione
B7: 10:00:00 | C7: Economia: Lezione edificio B, stanza 256
B8: 11:00:00 | F8: Fisica: Laboratorio Edificio J, stanza 309
B9: 12:00:00
B10: 13:00:00
B11: 14:00:00
B12: 15:00:00
B13: 16:00:00
B14: 17:00:00
B15: 18:00:00
B16: 19:00:00
B17: 20:00:00
B18: 21:00:00
B19: 22:00:00
B20: 23:00:00
B21: 1
B22: 1.041666667
B23: 1.083333333
B24: 1.125
B25: 1.166666667
B26: 1.208333333
B27: 1.25
B28: 1.291666667
B29: 1.333333333

Sheet CREDITI
B1: UNIVERSITÀ
B2: PIANO CREDITI
B3: Titolo di studio | C3: =Anno -> ANNO
B4: AVANZAMENTO COMPLESSIVO | D4: AVANZAMENTO COMPLESSIVO
B5: =AVERAGE(Corsi[VOTO]) -> 3.5 | C5: =IFERROR(TEXT(AVERAGEIF(Corsi[COMPLETATO],"Sì",Corsi[VOTO]),"0,00"),"0,00")&" Media voti attuale" -> 3,50 Media voti attuale | D5: =COUNTIF(Corsi[COMPLETATO],"Sì")/COUNTA(Corsi[TITOLO CORSO]) -> 0.6666666667 | E5: =TEXT(COUNTIF(Corsi[COMPLETATO],"Sì")/COUNTA(Corsi[TITOLO CORSO]),"0%")&" Completato" -> 67% Completato
B6: Nota: il seguente riepilogo dei crediti viene automaticamente compilato con le voci immesse nella tabella Corsi universitari
B7: REQUISITO | C7: TOTALE CREDITI | D7: REALIZZATO | E7: NECESSARIO
B8: Specializzazione principale | C8: =IF(SUMIF(Corsi[REQUISITO],CREDITI!$B8,Corsi[CREDITI])=0,"0",SUMIF(Corsi[REQUISITO],CREDITI!$B8,Corsi[CREDITI])) -> 4 | D8: =SUMIFS(Corsi[CREDITI],Corsi[REQUISITO],CREDITI!$B8,Corsi[COMPLETATO],"Sì") -> 4 | E8: =SUMIF(Corsi[REQUISITO],CREDITI!$B8,Corsi[CREDITI])-SUMIFS(Corsi[CREDITI],Corsi[REQUISITO],CREDITI!$B8,Corsi[COMPLETATO],"Sì") -> 0
B9: Specializzazione secondaria | C9: =IF(SUMIF(Corsi[REQUISITO],CREDITI!$B9,Corsi[CREDITI])=0,"0",SUMIF(Corsi[REQUISITO],CREDITI!$B9,Corsi[CREDITI])) -> 3 | D9: =SUMIFS(Corsi[CREDITI],Corsi[REQUISITO],CREDITI!$B9,Corsi[COMPLETATO],"Sì") -> 0 | E9: =SUMIF(Corsi[REQUISITO],CREDITI!$B9,Corsi[CREDITI])-SUMIFS(Corsi[CREDITI],Corsi[REQUISITO],CREDITI!$B9,Corsi[COMPLETATO],"Sì") -> 3
B10: Corso scelto | C10: =IF(SUMIF(Corsi[REQUISITO],CREDITI!$B10,Corsi[CREDITI])=0,"0",SUMIF(Corsi[REQUISITO],CREDITI!$B10,Corsi[CREDITI])) -> 2 | D10: =SUMIFS(Corsi[CREDITI],Corsi[REQUISITO],CREDITI!$B10,Corsi[COMPLETATO],"Sì") -> 2 | E10: =SUMIF(Corsi[REQUISITO],CREDITI!$B10,Corsi[CREDITI])-SUMIFS(Corsi[CREDITI],Corsi[REQUISITO],CREDITI!$B10,Corsi[COMPLETATO],"Sì") -> 0
B11: Studio generale | C11: =IF(SUMIF(Corsi[REQUISITO],CREDITI!$B11,Corsi[CREDITI])=0,"0",SUMIF(Corsi[REQUISITO],CREDITI!$B11,Corsi[CREDITI])) -> 0 | D11: =SUMIFS(Corsi[CREDITI],Corsi[REQUISITO],CREDITI!$B11,Corsi[COMPLETATO],"Sì") -> 0 | E11: =SUMIF(Corsi[REQUISITO],CREDITI!$B11,Corsi[CREDITI])-SUMIFS(Corsi[CREDITI],Corsi[REQUISITO],CREDITI!$B11,Corsi[COMPLETATO],"Sì") -> 0
B12: Totale | C12: =SUBTOTAL(109,CREDITI!$C$8:$C$11) -> 9 | D12: =SUBTOTAL(109,CREDITI!$D$8:$D$11) -> 6 | E12: =SUBTOTAL(109,CREDITI!$E$8:$E$11) -> 3
B13: Corsi
B14: TITOLO CORSO | C14: N. CORSO | D14: REQUISITO | E14: CREDITI | F14: COMPLETATO | G14: VOTO | H14: SEMESTRE
B15: Corso 1 | C15: Numero | D15: Specializzazione principale | E15: 4 | F15: Sì | G15: 4.0 | H15: Semestre 1
B16: Corso 2 | C16: Numero | D16: Specializzazione secondaria | E16: 3 | F16: No | H16: Semestre 1
B17: Corso 3 | C17: Numero | D17: Corso scelto | E17: 2 | F17: Sì | G17: 3.0 | H17: Semestre 1

Sheet BUDGET
B1: =Università -> UNIVERSITÀ
B2: REGISTRAZIONE BUDGET
B3: Budget personale | C3: =Anno -> ANNO
B4: PERCENTUALE DI ENTRATE SPESE
B5: =USCITE_MENSILI_NETTE/ENTRATE_MENSILI_NETTE -> € 1
B6: =B5 -> 0.7454545455
B7: ENTRATE MENSILI NETTE | C7: USCITE MENSILI NETTE | D7: SALDO
B8: =C10 -> € 2,750 | C8: ='USCITE MENSILI NETTE'!C4+'USCITE SEMESTRE'!D4 -> € 2,050 | D8: =ENTRATE_MENSILI_NETTE-USCITE_MENSILI_NETTE -> € 700
B9: Mesi nel semestre | C9: 4
B10: ENTRATE MENSILI | C10: =SUM(EntrateMensili[IMPORTO]) -> € 2,750
B11: VOCE | C11: IMPORTO
B12: Entrate fisse | C12: € 1,500
B13: Sovvenzioni | C13: € 500
B14: Prestiti | C14: € 500
B15: Altre entrate | C15: € 250

Sheet USCITE MENSILI NETTE
B1: =Università -> UNIVERSITÀ
B2: REGISTRAZIONE BUDGET
B3: Uscite mensili | C3: =Anno -> ANNO
B4: USCITE MENSILI | C4: =SUM(UsciteMensili[IMPORTO]) -> € 1,675
B5: VOCE | C5: IMPORTO
B6: Affitto | C6: € 300
B7: Utenze | C7: € 50
B8: Cellulare | C8: € 75
B9: Generi alimentari | C9: € 250
B10: Spese auto | C10: € 50
B11: Finanziamenti | C11: € 500
B12: Carte di credito | C12: € 275
B13: Assicurazione | C13: € 125
B14: Svago | C14: € 50
B15: Varie | C15: € 0

Sheet USCITE SEMESTRE
B1: =Università -> UNIVERSITÀ
B2: REGISTRAZIONE BUDGET
B3: Uscite semestre | C3: =Anno -> ANNO
B4: USCITE SEMESTRE (totali/mensili) | C4: =SUM(UsciteSemestre[IMPORTO]) -> € 1,500 | D4: =SUM(UsciteSemestre[AL MESE]) -> € 375
B5: VOCE | C5: IMPORTO | D5: AL MESE
B6: Retta | C6: € 750 | D6: =UsciteSemestre[[#This Row],[IMPORTO]]/Mesi_nel_semestre -> € 188
B7: Spese laboratorio | C7: € 250 | D7: =UsciteSemestre[[#This Row],[IMPORTO]]/Mesi_nel_semestre -> € 63
B8: Libri | C8: € 500 | D8: =UsciteSemestre[[#This Row],[IMPORTO]]/Mesi_nel_semestre -> € 125
B9: Depositi | C9: € 0 | D9: =UsciteSemestre[[#This Row],[IMPORTO]]/Mesi_nel_semestre -> € 0
B10: Trasporti | C10: € 0 | D10: =UsciteSemestre[[#This Row],[IMPORTO]]/Mesi_nel_semestre -> € 0
B11: Altre spese | C11: € 0 | D11: =UsciteSemestre[[#This Row],[IMPORTO]]/Mesi_nel_semestre -> € 0

Sheet LIBRI
B1: =Università -> UNIVERSITÀ
B2: REGISTRAZIONE LIBRI
B3: Elenco libri
B4: TITOLO | C4: AUTORE | D4: CORSO | E4: DOVE ACQUISTARE | F4: ISBN | G4: NOTE
B5: Titolo libro | C5: Autore | D5: Corso | E5: Luogo | F5: Codice
B6: Titolo libro | C6: Autore | D6: Corso | E6: Luogo | F6: Codice
B7: Titolo libro | C7: Autore | D7: Corso | E7: Luogo | F7: Codice
